[Event "WSTCC-50 2024"]
[Site "Krakow"]
[Date "2024.07.03"]
[Round "2.12"]
[White "Wielosz, Jaroslaw"]
[Black "Goman, Colin"]
[Result "1-0"]
[ECO "A10"]
[WhiteElo "1920"]
[BlackElo "1759"]
[Annotator "NA RC"]
[PlyCount "43"]
[EventDate "2024.07.01"]
[EventType "team-tourn"]
[EventCountry "POL"]
[SourceTitle "playchess.com"]
[Source "ChessBase"]
[SourceQuality "1"]
[TimeControl "40/5400+30:1800+30"]

1. c4 {[%emt 0:00:06]} d6 {[%emt 0:03:30]} 2. Nc3 {[%emt 0:00:15]} Bf5 {[%emt 0:05:22]} 3. e4 {[%emt 0:00:59]} Bg6 {[%emt 0:00:09]} 4. f4 {[%emt 0:12:45]} Nf6 {[%emt 0:07:00]} 5. f5 {[%emt 0:05:11]} Bh5 {[%emt 0:00:27]} 6. Qa4+ {[%emt 0:05:42]} Nfd7 {[%emt 0:06:52]} 7. d4 {[%emt 0:09:16]} e6 {[%emt 0:10:13]} 8. fxe6 {[%emt 0:01:31]} fxe6 {[%emt 0:00:56]} 9. Qb5 {[%emt 0:03:47]} c5 {[%emt 0:19:38]} 10. dxc5 {[%emt 0:05:35]} dxc5 {[%emt 0:03:59]} 11. Qxb7 {[%emt 0:05:57]} Nb6 {[%emt 0:00:23]} 12. Be2 {[%emt 0:03:19]} Bxe2 {[%emt 0:05:26]} 13. Ngxe2 {[%emt 0:00:10]} Nxc4 {[%emt 0:00:51]} 14. Qb5+ {[%emt 0:00:48]} Qd7 {[%emt 0:08:13]} 15. Qxc4 {[%emt 0:00:32]} Bd6 {[%emt 0:00:14]} 16. O-O {[%emt 0:03:40]} Nc6 {[%emt 0:01:28]} 17. Be3 {[%emt 0:05:09]} Nb4 {[%emt 0:05:32]} 18. Rad1 {[%emt 0:03:23]} Rc8 {[%emt 0:06:15]} 19. e5 {[%emt 0:01:28]} Nc2 {[%emt 0:00:53]} 20. Bg5 {[%emt 0:01:49]} Nd4 {[%emt 0:02:19]} 21. exd6 {[%emt 0:01:07]} Qxd6 {[%emt 0:01:16]} 22. Nxd4 {[%emt 0:00:45]} 1-0

[Event "WSTCC-50 2024"]
[Site "Krakow"]
[Date "2024.07.03"]
[Round "2.13"]
[White "David, Alberto"]
[Black "Dahl, Fredrik A"]
[Result "1/2-1/2"]
[ECO "C42"]
[WhiteElo "2502"]
[BlackElo "2237"]
[Annotator "TA"]
[PlyCount "95"]
[EventDate "2024.07.01"]
[EventType "team-tourn"]
[EventCountry "POL"]
[SourceTitle "playchess.com"]
[Source "ChessBase"]
[SourceQuality "1"]
[TimeControl "40/5400+30:1800+30"]

{[%evp 9,95,8,20,10,26,13,7,7,12,22,30,9,31,35,29,25,27,34,34,39,38,33,37,31,70,18,12,12,23,14,13,10,18,8,14,8,21,15,20,25,38,16,50,38,48,33,30,0,47,60,96,89,96,87,89,76,138,102,145,147,163,157,162,109,100,108,93,92,100,92,219,219,222,222,210,211,227,228,497,493,456,459,698,684,654,661,714,718]} 1. e4 {[%emt 0:00:10]} e5 {[%emt 0:00:08]} 2. Nf3 {[%emt 0:00:07]} Nf6 {[%emt 0:00:05]} 3. Nxe5 {[%emt 0:01:19][%cal Bf3e5,Be5d3,Bd3f4][%mdl 32]} d6 {[%emt 0:00:08]} 4. Nd3 {[%emt 0:00:19]} Nxe4 {[%emt 0:00:24]} 5. Qe2 {[%emt 0:00:07]} Qe7 $1 {[%emt 0:00:46]} 6. Nf4 {[%emt 0:00:06]} Nf6 {[%emt 0:02:59] Prevents Nd5} 7. d4 {[%emt 0:00:18]} Qxe2+ {[%emt 0:02:18]} 8. Bxe2 {[%emt 0:01:32] The position is equal.} Bf5 {[%emt 0:01:59]} 9. c3 {[%emt 0:03:19]} Be7 {[%emt 0:04:45]} 10. h4 {[%emt 0:06:40]} c6 {[%emt 0:08:31]} 11. f3 {[%emt 0:05:26]} h5 {[%emt 0:01:46]} 12. Nd2 {[%emt 0:01:35][%cal Bb1d2,Bd2f1,Bf1g3][%mdl 32]} Nbd7 {[%emt 0:07:53]} 13. Nf1 {[%emt 0:02:13]} Nf8 {[%emt 0:00:48]} 14. Ng3 {[%emt 0:01:32]} Bd7 {[%emt 0:01:11]} 15. Kf2 {[%emt 0:04:13]} Ne6 {[%emt 0:04:37]} 16. Bd3 {[%emt 0:01:14]} g6 {[%emt 0:04:39]} 17. Bd2 {[%emt 0:00:55]} (17. Re1 $1 $14) 17... Nxf4 $11 {[%emt 0:06:40]} 18. Bxf4 {[%emt 0:00:10]} O-O {[%emt 0:01:23]} 19. Bg5 {[%emt 0:10:31]} Rfe8 {[%emt 0:04:35]} 20. Rhe1 {[%emt 0:03:45][%cal Oe1e7]} Kg7 {[%emt 0:00:36]} 21. a4 {[%emt 0:01:59]} d5 {[%emt 0:03:51]} 22. Bf4 {[%emt 0:06:10]} Ng8 {[%emt 0:02:34]} 23. Rh1 {[%emt 0:03:39]} Bf6 {[%emt 0:04:16]} 24. a5 {[%emt 0:04:42]} b6 {[%emt 0:04:26]} 25. Bc7 {[%emt 0:13:58]} Rec8 {[%emt 0:05:09]} 26. Bd6 {[%emt 0:04:19]} Be7 {[%emt 0:02:16]} 27. Be5+ {[%emt 0:04:38]} Bf6 $1 {[%emt 0:00:19]} 28. Bf4 {[%emt 0:01:23]} c5 {[%emt 0:00:42]} (28... Re8 $11) 29. Ba6 $36 {[%emt 0:01:25][%mdl 2048] Black is under pressure.} cxd4 {[%emt 0:00:56]} 30. Bxc8 {[%emt 0:00:05]} Rxc8 {[%emt 0:00:09]} 31. axb6 {[%emt 0:01:02]} axb6 {[%emt 0:00:11]} 32. Ne2 {[%emt 0:00:46]} dxc3 {[%emt 0:00:45]} (32... d3 $142 33. Ng3 Bb5) 33. Ra7 {[%emt 0:02:51]} Bf5 {[%emt 0:03:06]} 34. bxc3 {[%emt 0:01:47]} Bd3 {[%emt 0:00:54][%cal Od3e2]} 35. Nd4 {[%emt 0:02:21] [#] Threatens to win with Ne6+.} Ne7 {[%emt 0:01:53]} 36. Re1 {[%emt 0:00:38]} (36. Rc7 $18) 36... Nc6 $16 {[%emt 0:05:38]} (36... Rxc3 $2 37. Rexe7 (37. Be5 Bxe5 38. Rxe5 Nf5 $16) 37... Bxd4+ 38. Kg3 $18) 37. Nxc6 {[%emt 0:00:13]} Rxc6 {[%emt 0:00:04]} 38. Be5 {[%emt 0:02:11] White is more active.} Bxe5 {[%emt 0:02:45]} 39. Rxe5 {[%emt 0:00:06][%mdl 4096] Endgame. And now Ree7 would win. KRR-KRB} Bf5 {[%emt 0:00:32] This move loses the game for Black.} (39... Rxc3 $16 {keeps fighting.} 40. Rxd5 Bc4) 40. Ree7 $18 {[%emt 0:02:29]} (40. Rxd5 Rxc3 41. Rb5 Rc2+ 42. Kg1 Rc4 $14) 40... Be6 {[%emt 0:00:28]} 41. Rec7 {[%emt 0:30:18]} Rd6 {[%emt 0:31:04]} 42. Ke3 {[%emt 0:00:10]} b5 {[%emt 0:01:20]} 43. Kd4 {[%emt 0:07:00]} Kf6 $2 {[%emt 0:02:17] [#]} (43... Rb6 44. g3 Rb8) 44. Ra8 {[%emt 0:00:25] White is clearly winning.} Bf5 {[%emt 0:05:45]} 45. Kc5 {[%emt 0:00:16][%csl LRb5,LRd6]} Re6 {[%emt 0:00:22]} (45... Rd7 $142 46. Rxd7 Bxd7) 46. Raa7 {[%emt 0:00:16]} ({Stronger than} 46. Kxb5 Re2 $11) 46... Ke5 {[%emt 0:00:42]} 47. g3 {[%emt 0:00:32]} ({Weaker is} 47. Rxf7 Kf4 $16) 47... f6 {[%emt 0:00:32]} 48. Rd7 {[%emt 0:00:28][%mdl 32768] Weighted Error Value: White=0.08 (flawless) /Black=0.28 (precise) .  Mistake:       	White=2     	Black=5      Inaccurate:     	White=1     	Black=4      OK:         	White=17    	Black=15     Best:        	White=2     	Black=1      Strong:       	---       	Black=1     . An unexpected result.} 1/2-1/2

[Event "WSTCC-50 2024"]
[Site "Krakow"]
[Date "2024.07.03"]
[Round "2.13"]
[White "Zeidler, Sven P."]
[Black "Oratovsky, Michael"]
[Result "0-1"]
[ECO "B23"]
[WhiteElo "2116"]
[BlackElo "2417"]
[Annotator "TA"]
[PlyCount "62"]
[EventDate "2024.07.01"]
[EventType "team-tourn"]
[EventCountry "POL"]
[SourceTitle "playchess.com"]
[Source "ChessBase"]
[SourceQuality "1"]
[TimeControl "40/5400+30:1800+30"]

{[%evp 16,62,-14,0,0,-2,-13,-35,-35,-23,-25,-38,34,-35,-17,-24,-22,-63,-49,-63,-51,-263,-271,-262,-275,-261,-248,-468,-474,-513,-464,-525,-502,-513,-510,-536,-485,-521,-513,-587,-592,-583,-578,-549,-493,-637,-645,-629,-476]} 1. e4 {[%emt 0:00:03]} c5 {[%emt 0:08:37]} 2. Nc3 {[%emt 0:00:07]} a6 {[%emt 0:00:18]} 3. g3 {[%emt 0:00:07]} b5 {[%emt 0:00:11]} 4. Bg2 {[%emt 0:00:06]} Bb7 {[%emt 0:00:04]} 5. Nge2 {[%emt 0:00:08]} e6 {[%emt 0:00:38]} 6. d4 {[%emt 0:00:19]} cxd4 {[%emt 0:01:22]} 7. Nxd4 {[%emt 0:00:06]} Nf6 {[%emt 0:00:52]} 8. O-O {[%emt 0:00:07]} b4 {[%emt 0:01:05]} 9. Na4 {[%emt 0:00:35]} Bxe4 {[%emt 0:00:08]} 10. Bxe4 {[%emt 0:02:15]} Nxe4 {[%emt 0:00:07]} 11. Re1 {[%emt 0:00:45]} Nc5 {[%emt 0:04:45] Black is slightly better.} 12. c3 {[%emt 0:22:22]} Nxa4 {[%emt 0:08:07]} 13. Qxa4 {[%emt 0:00:06][%cal Od4e6]} bxc3 {[%emt 0:07:56]} (13... Be7 $15) 14. bxc3 {[%emt 0:16:00]} (14. Nxe6 $1 $14 fxe6 15. Rxe6+ Be7 16. Bg5) 14... Be7 $15 {[%emt 0:05:21]} 15. Bf4 {[%emt 0:06:33][%cal Oe1e6]} O-O {[%emt 0:02:40]} 16. Rad1 {[%emt 0:02:07]} Qc8 {[%emt 0:17:12]} 17. Nf5 {[%emt 0:12:03]} Bf6 {[%emt 0:03:33]} 18. Be5 $2 {[%emt 0:00:15] [#] This move loses the game for White.} exf5 $19 {[%emt 0:05:22]} 19. Bxf6 {[%emt 0:00:06]} gxf6 {[%emt 0:00:13]} 20. Qf4 {[%emt 0:12:10]} Qxc3 {[%emt 0:18:30] ...Nc6 would now be deadly.} ({Much less strong is} 20... Re8 21. Qxf5 Rxe1+ 22. Rxe1 $19) 21. Qh6 $2 {[%emt 0:07:58]} (21. Qxf5 Nc6 22. Re3) 21... Nc6 {[%emt 0:02:01] Black is clearly winning.} 22. Rc1 {[%emt 0:00:33]} Qd4 {[%emt 0:04:26] And now ...Ne5 would win.} 23. Rcd1 {[%emt 0:00:41]} Qg4 {[%emt 0:00:28]} 24. Qxf6 {[%emt 0:00:06]} Rae8 {[%emt 0:01:28]} 25. h3 {[%emt 0:01:57]} Qg6 {[%emt 0:01:33]} ({Worse is} 25... Qxh3 26. Qg5+ Kh8 27. Qf6+ Kg8 28. Qg5+ Kh8 29. Qf6+ Kg8 $11) 26. Qc3 {[%emt 0:01:01]} Rxe1+ {[%emt 0:00:34]} 27. Qxe1 {[%emt 0:01:00]} f4 {[%emt 0:00:46]} 28. Rxd7 {[%emt 0:00:49]} fxg3 {[%emt 0:00:10]} 29. fxg3 {[%emt 0:00:13]} Rb8 {[%emt 0:00:32]} 30. Rd1 {[%emt 0:01:03]} Rb2 {[%emt 0:00:54][%cal Og6c2] [#] ( -> ...Qc2!)} 31. Qe3 {[%emt 0:01:18]} Rb1 {[%emt 0:02:38] Weighted Error Value: White=0.47/Black=0.16 (very precise) .  Loses game:     	White=1     	---        Mistake:       	White=2     	Black=1      Inaccurate:     	White=1     	---        OK:         	White=3     	Black=10     Best:        	---       	Black=2} 0-1

[Event "WSTCC-50 2024"]
[Site "Krakow"]
[Date "2024.07.03"]
[Round "2.13"]
[White "Tsiganova, Monika"]
[Black "Mertens, Marc"]
[Result "1-0"]
[ECO "D94"]
[WhiteElo "1999"]
[BlackElo "2142"]
[Annotator "NA RC"]
[PlyCount "53"]
[EventDate "2024.07.01"]
[EventType "team-tourn"]
[EventCountry "POL"]
[SourceTitle "playchess.com"]
[Source "ChessBase"]
[SourceQuality "1"]
[TimeControl "40/5400+30:1800+30"]

1. d4 {[%emt 0:00:04]} Nf6 {[%emt 0:00:06]} 2. c4 {[%emt 0:00:46]} g6 {[%emt 0:00:08]} 3. Nc3 {[%emt 0:00:11]} d5 {[%emt 0:00:08]} 4. Nf3 {[%emt 0:01:02]} Bg7 {[%emt 0:00:07]} 5. e3 {[%emt 0:01:23]} O-O {[%emt 0:00:18]} 6. Be2 {[%emt 0:00:09]} dxc4 {[%emt 0:00:39]} 7. Bxc4 {[%emt 0:00:11]} c5 {[%emt 0:11:54]} 8. O-O {[%emt 0:00:49]} cxd4 {[%emt 0:10:36]} 9. exd4 {[%emt 0:00:11]} Nc6 {[%emt 0:04:21]} 10. h3 {[%emt 0:01:24]} Na5 {[%emt 0:03:39]} 11. Be2 {[%emt 0:04:10]} Be6 {[%emt 0:00:18]} 12. Bg5 {[%emt 0:05:20]} Nd5 {[%emt 0:05:13]} 13. Re1 {[%emt 0:06:28]} h6 {[%emt 0:09:41]} 14. Bh4 {[%emt 0:04:57]} Nxc3 {[%emt 0:04:15]} 15. bxc3 {[%emt 0:00:08]} Rc8 {[%emt 0:00:04]} 16. Qa4 {[%emt 0:04:35]} g5 {[%emt 0:14:48]} 17. Bg3 {[%emt 0:02:44]} Rxc3 {[%emt 0:00:56]} 18. h4 {[%emt 0:12:11]} Bf6 {[%emt 0:09:59]} 19. hxg5 {[%emt 0:02:26]} hxg5 {[%emt 0:00:02]} 20. Rab1 {[%emt 0:00:57]} Bc4 {[%emt 0:10:28]} 21. Qb4 {[%emt 0:05:58]} Rc2 {[%emt 0:00:06]} 22. Bxc4 {[%emt 0:02:22]} Rxc4 {[%emt 0:00:15]} 23. Qd2 {[%emt 0:00:37]} Qd5 {[%emt 0:03:49]} 24. Re5 {[%emt 0:01:13]} Bxe5 {[%emt 0:00:46]} 25. Qxg5+ {[%emt 0:00:10]} Kh7 {[%emt 0:01:46]} 26. Qh5+ {[%emt 0:00:26]} Kg7 {[%emt 0:00:14]} 27. Bxe5+ 1-0

[Event "WSTCC-50 2024"]
[Site "Krakow"]
[Date "2024.07.03"]
[Round "2.14"]
[White "Kaspi, Alexander"]
[Black "Adams, Mark"]
[Result "1-0"]
[ECO "E32"]
[WhiteElo "2365"]
[BlackElo "1951"]
[Annotator "RC"]
[PlyCount "69"]
[EventDate "2024.07.01"]
[EventType "team-tourn"]
[EventCountry "POL"]
[SourceTitle "playchess.com"]
[Source "ChessBase"]
[SourceQuality "1"]
[TimeControl "40/5400+30:1800+30"]

1. d4 {[%emt 0:00:09]} Nf6 {[%emt 0:00:16]} 2. c4 {[%emt 0:01:14]} e6 {[%emt 0:00:20]} 3. Nc3 {[%emt 0:00:09]} Bb4 {[%emt 0:00:36]} 4. Qc2 {[%emt 0:00:26]} O-O {[%emt 0:00:38]} 5. a3 {[%emt 0:00:06]} Bxc3+ {[%emt 0:01:44]} 6. Qxc3 {[%emt 0:00:10]} b6 {[%emt 0:03:13]} 7. Bg5 {[%emt 0:00:34]} Bb7 {[%emt 0:01:18]} 8. e3 {[%emt 0:00:48]} d6 {[%emt 0:00:43]} 9. f3 {[%emt 0:05:46]} Nbd7 {[%emt 0:05:04]} 10. Nh3 {[%emt 0:00:09]} e5 {[%emt 0:01:50]} 11. d5 {[%emt 0:05:23]} h6 {[%emt 0:00:12]} 12. Bh4 {[%emt 0:01:14]} g5 {[%emt 0:05:42]} 13. Bf2 {[%emt 0:01:53]} Qe7 {[%emt 0:18:09]} 14. e4 {[%emt 0:03:11]} c6 {[%emt 0:09:35]} 15. dxc6 {[%emt 0:07:21]} Bxc6 {[%emt 0:00:52]} 16. Rd1 {[%emt 0:00:18]} Nc5 {[%emt 0:04:04]} 17. b4 {[%emt 0:03:04]} Ne6 {[%emt 0:04:35]} 18. Be3 {[%emt 0:02:22]} Rac8 {[%emt 0:08:00]} 19. Qd2 {[%emt 0:01:20]} Ne8 {[%emt 0:04:39]} 20. Nf2 {[%emt 0:00:50]} f5 {[%emt 0:01:47]} 21. exf5 {[%emt 0:00:08]} Rxf5 {[%emt 0:00:23]} 22. h4 {[%emt 0:02:52]} Nd4 {[%emt 0:05:53]} 23. Bxd4 {[%emt 0:03:23]} exd4+ {[%emt 0:00:12]} 24. Be2 {[%emt 0:00:03]} Rf4 {[%emt 0:17:01]} 25. hxg5 {[%emt 0:03:18]} Qxg5 {[%emt 0:00:41]} 26. Kf1 {[%emt 0:00:12]} Bd7 {[%emt 0:04:26]} 27. Ne4 {[%emt 0:02:39]} Qf5 {[%emt 0:00:44]} 28. Qxd4 {[%emt 0:00:16]} Bc6 {[%emt 0:00:43]} 29. Bd3 {[%emt 0:05:56]} Bxe4 {[%emt 0:00:31]} 30. Bxe4 {[%emt 0:00:11]} Qg5 {[%emt 0:00:58]} 31. Qd5+ {[%emt 0:03:22]} Qxd5 {[%emt 0:00:18]} 32. Bxd5+ {[%emt 0:00:08]} Kg7 {[%emt 0:00:06]} 33. Re1 {[%emt 0:00:51]} Nf6 {[%emt 0:01:14]} 34. g3 {[%emt 0:07:17]} Rd4 {[%emt 0:00:27]} 35. Re7+ {[%emt 0:00:25]} 1-0

[Event "WSTCC-50 2024"]
[Site "Krakow"]
[Date "2024.07.03"]
[Round "2.14"]
[White "Berg, Anders Hoyer"]
[Black "Bellia, Fabrizio"]
[Result "1/2-1/2"]
[ECO "C56"]
[WhiteElo "2079"]
[BlackElo "2401"]
[Annotator "TA"]
[PlyCount "97"]
[EventDate "2024.07.01"]
[EventType "team-tourn"]
[EventCountry "POL"]
[SourceTitle "playchess.com"]
[Source "ChessBase"]
[SourceQuality "1"]
[TimeControl "40/5400+30:1800+30"]

{[%evp 14,97,-8,-14,0,-13,-20,-31,-31,-22,-11,-7,-13,-49,-27,-30,-23,-44,-46,-55,-30,-30,-25,-38,-2,-5,-4,-8,-3,0,0,-30,-29,-22,-16,-20,-17,-63,-79,-77,-80,-69,-69,-87,-89,-80,-55,-45,-44,-98,0,0,0,0,7,0,0,0,24,0,0,0,0,0,106,0,0,0,0,0,0,0,0,0,0,0,0,0,0,0,0,0,0,0,0,0]} 1. e4 {[%emt 0:00:06]} e5 {[%emt 0:00:07]} 2. Nf3 {[%emt 0:00:08]} Nc6 {[%emt 0:00:06]} 3. d4 {[%emt 0:00:20]} exd4 {[%emt 0:00:08]} 4. Bc4 {[%emt 0:00:28]} Nf6 {[%emt 0:00:25]} 5. O-O {[%emt 0:00:40][%cal Bh1f1,Bf1e1,Be1e4][%mdl 32]} Nxe4 {[%emt 0:00:35]} 6. Re1 {[%emt 0:00:18]} d5 {[%emt 0:00:07]} 7. Bxd5 {[%emt 0:00:38]} Qxd5 {[%emt 0:00:09]} 8. Nc3 $1 {[%emt 0:00:12]} Qd7 {[%emt 0:01:52]} 9. Rxe4+ {[%emt 0:04:12]} (9. Nxe4 $5 Be7 $8 10. Bg5 $11) 9... Be7 {[%emt 0:00:31]} 10. Nxd4 {[%emt 0:04:56]} f5 $1 {[%emt 0:03:27] Black is slightly better.} 11. Rf4 {[%emt 0:00:29]} O-O {[%emt 0:01:20]} 12. Nxc6 $1 {[%emt 0:07:42]} Qxc6 {[%emt 0:00:19]} 13. Qd5+ {[%emt 0:02:57]} Qe6 {[%emt 0:03:02]} (13... Qxd5 {simplifies} 14. Nxd5 Bd8 15. Rf3 c6) 14. Rf3 {[%emt 0:10:09]} c6 {[%emt 0:05:50]} 15. Qxe6+ {[%emt 0:06:29]} Bxe6 {[%emt 0:00:08]} 16. Bf4 {[%emt 0:04:39]} Bf6 {[%emt 0:03:46]} 17. Re3 {[%emt 0:05:45]} Rfe8 {[%emt 0:05:32]} 18. Be5 {[%emt 0:06:06]} Kf7 {[%emt 0:03:42]} 19. Bxf6 {[%emt 0:02:57]} Kxf6 {[%emt 0:00:14]} 20. f4 $1 {[%emt 0:01:14]} Rad8 {[%emt 0:04:02]} 21. Rae1 {[%emt 0:14:39]} Rd2 {[%emt 0:02:22]} 22. R3e2 {[%emt 0:03:25]} Rxe2 {[%emt 0:00:17]} 23. Rxe2 $11 {[%emt 0:02:39][%mdl 4096] Endgame. KRB-KRN} Rd8 {[%emt 0:00:10]} 24. b3 {[%emt 0:07:13]} Bf7 {[%emt 0:00:43]} 25. a3 {[%emt 0:05:50]} (25. g3 $11 {might be stronger.}) 25... Bh5 $15 {[%emt 0:01:06]} 26. Rf2 {[%emt 0:00:37]} b5 {[%emt 0:00:49]} 27. b4 {[%emt 0:04:13]} Rd4 {[%emt 0:01:24]} 28. Kf1 {[%emt 0:03:21]} Rc4 {[%emt 0:03:51]} 29. Nb1 {[%emt 0:00:05]} Re4 {[%emt 0:05:42]} 30. g3 {[%emt 0:00:54]} a5 {[%emt 0:09:00]} 31. c3 {[%emt 0:01:14] [#]} ({White should play} 31. bxa5 $15 Ra4 32. Ke1) 31... c5 {[%emt 0:10:10]} 32. Rb2 $11 {[%emt 0:00:34]} cxb4 {[%emt 0:03:36]} 33. cxb4 {[%emt 0:00:05]} Rc4 {[%emt 0:08:09]} 34. bxa5 {[%emt 0:01:09]} Be8 {[%emt 0:00:30]} 35. Rb4 {[%emt 0:00:58] Black must now prevent Rxc4.} Rc7 {[%emt 0:01:59]} 36. Nd2 {[%emt 0:00:30]} Ra7 $1 {[%emt 0:01:25]} 37. Nb3 {[%emt 0:00:23]} Bf7 {[%emt 0:00:34]} 38. Kf2 {[%emt 0:00:20]} Bc4 {[%emt 0:00:28] [#]} (38... Bxb3 $11 {keeps the balance.} 39. Rxb3 Rxa5) 39. a4 {[%emt 0:00:43]} ({White should try} 39. Nd2 $1 $16) 39... Bxb3 $1 {[%emt 0:00:19] The position is equal.} 40. axb5 {[%emt 0:00:30] b6 would now be deadly. KRB-KR} (40. Rxb3 $2 {too greedy.} bxa4 41. Ra3 Rxa5 $19) 40... Bd5 {[%emt 0:00:19]} 41. b6 {[%emt 0:15:14]} Rxa5 {[%emt 0:00:26]} 42. b7 {[%emt 0:00:06]} Ra2+ {[%emt 0:00:16]} 43. Ke3 {[%emt 0:00:37]} Bxb7 {[%emt 0:00:10]} 44. Rb6+ {[%emt 0:00:08]} Kf7 {[%emt 0:00:28]} 45. Rxb7+ {[%emt 0:00:05]} Kf6 {[%emt 0:01:23]} 46. Rb6+ {[%emt 0:00:31]} Kf7 {[%emt 0:00:13]} 47. h3 {[%emt 0:01:32]} Rh2 {[%emt 0:00:51]} 48. h4 {[%emt 0:00:26]} Ra2 {[%emt 0:00:20]} 49. Rb3 {[%emt 0:00:42] Weighted Error Value: White=0.10 (very precise) /Black=0.11 (very precise) .  Mistake:       	White=3     	Black=2      Inaccurate:     	White=2     	Black=1      OK:         	White=15    	Black=17     Best:        	White=1     	Black=4      Strong:       	White=2     	Black=3} 1/2-1/2

[Event "WSTCC-50 2024"]
[Site "Krakow"]
[Date "2024.07.03"]
[Round "2.14"]
[White "Haensel, Jean-Marie"]
[Black "Narva, Regina"]
[Result "0-1"]
[ECO "A41"]
[WhiteElo "1868"]
[BlackElo "1921"]
[Annotator "NA RC"]
[PlyCount "74"]
[EventDate "2024.07.01"]
[EventType "team-tourn"]
[EventCountry "POL"]
[SourceTitle "playchess.com"]
[Source "ChessBase"]
[SourceQuality "1"]
[TimeControl "40/5400+30:1800+30"]

1. d4 {[%emt 0:00:04]} d6 {[%emt 0:00:53]} 2. c4 {[%emt 0:00:24]} g6 {[%emt 0:00:22]} 3. Nc3 {[%emt 0:00:36]} Bg7 {[%emt 0:00:41]} 4. Nf3 {[%emt 0:00:22]} b6 {[%emt 0:02:16]} 5. e3 {[%emt 0:01:22]} Nf6 {[%emt 0:02:55]} 6. Bd3 {[%emt 0:00:57]} c5 {[%emt 0:02:31]} 7. O-O {[%emt 0:02:09]} O-O {[%emt 0:02:00]} 8. h3 {[%emt 0:00:58]} a6 {[%emt 0:02:00]} 9. b3 {[%emt 0:02:26]} Nc6 {[%emt 0:04:20]} 10. Re1 {[%emt 0:02:43]} e5 {[%emt 0:03:38]} 11. dxe5 {[%emt 0:05:10]} dxe5 {[%emt 0:01:21]} 12. e4 {[%emt 0:03:22]} h6 {[%emt 0:03:55]} 13. Bb2 {[%emt 0:02:57]} Nh5 {[%emt 0:04:20]} 14. Nd5 {[%emt 0:04:15]} Nd4 {[%emt 0:03:19]} 15. Kh2 {[%emt 0:04:23]} Be6 {[%emt 0:06:46]} 16. Nxd4 {[%emt 0:04:51]} cxd4 {[%emt 0:03:37]} 17. Ba3 {[%emt 0:01:06]} Re8 {[%emt 0:00:52]} 18. g3 {[%emt 0:01:36]} Rb8 {[%emt 0:08:25]} 19. b4 {[%emt 0:09:54]} b5 {[%emt 0:08:17]} 20. Rc1 {[%emt 0:05:48]} Qd7 {[%emt 0:08:17]} 21. g4 {[%emt 0:08:19]} Bxd5 {[%emt 0:04:38]} 22. cxd5 {[%emt 0:02:24]} Nf4 {[%emt 0:02:58]} 23. Bf1 {[%emt 0:06:55]} f5 {[%emt 0:05:10]} 24. Qf3 {[%emt 0:01:35]} fxe4 {[%emt 0:01:57]} 25. Qxe4 {[%emt 0:00:22]} Qxd5 {[%emt 0:00:26]} 26. Qxd5+ {[%emt 0:01:44]} Nxd5 {[%emt 0:00:04]} 27. Rc6 {[%emt 0:00:21]} Nf4 {[%emt 0:12:37]} 28. Bc1 {[%emt 0:04:59]} Re6 {[%emt 0:00:34]} 29. Rc5 {[%emt 0:01:00]} Rf8 {[%emt 0:00:26]} 30. Bxf4 {[%emt 0:03:41]} Rxf4 {[%emt 0:00:05]} 31. Kg3 {[%emt 0:00:15]} Ref6 {[%emt 0:00:45]} 32. Rc8+ {[%emt 0:03:16]} Kh7 {[%emt 0:00:14]} 33. Re2 {[%emt 0:00:59]} Rf3+ {[%emt 0:00:49]} 34. Kg2 {[%emt 0:00:18]} e4 {[%emt 0:00:16]} 35. Rc1 {[%emt 0:00:44]} d3 {[%emt 0:01:57]} 36. Rd2 {[%emt 0:03:18]} Rf7 {[%emt 0:00:28]} 37. Re1 {[%emt 0:00:55]} Bc3 0-1